fUSD/lending_fUSD_20241219
["ID","MTS","AMOUNT","RATE_DAILY","PERIOD"]
[345975103,1734579038227,-331.214,0.00022488,7]
[345975104,1734579038237,-170.1,0.00022507,2]
[345975105,1734579038247,-652.36658427,0.00022509,2]
[345975106,1734579038256,-218.9015,0.00022609,2]
[345975107,1734579038265,-264.8778,0.00022609,2]
[345975108,1734579038274,-310.7621,0.00022609,2]
[345975109,1734579038284,-711.109,0.0002261,2]
[345975110,1734579038294,-293.8543,0.0002261,2]
[345975111,1734579038303,-331.214,0.00022688,7]
[345975112,1734579038312,-262.45,0.000227,3]
[345975113,1734579038322,-500.0,0.00022709,4]
[345975114,1734579038331,-406.32,0.00022709,4]
[345975115,1734579038340,-570.56,0.00022709,4]
[345975116,1734579038350,-506.76465119,0.00022709,4]
[345975117,1734579038360,-500.0,0.00022709,4]
[345975118,1734579038369,-500.0,0.00022709,4]
[345975119,1734579038378,-500.0,0.00022709,4]
[345975120,1734579038393,-275.49327014,0.00022709,4]
[345975121,1734579038409,-224.50672986,0.00022709,4]
[345975137,1734579038620,-500.0,0.00022709,4]
[345975138,1734579038630,-500.0,0.00022709,4]
[345975139,1734579038639,-500.0,0.00022709,4]
[345975140,1734579038649,-500.0,0.00022709,4]
[345975141,1734579038659,-514.02609053,0.00022709,4]
[345975142,1734579038668,-500.0,0.00022709,4]
[345975143,1734579038678,-500.0,0.00022709,4]
[345975144,1734579038687,-500.0,0.00022709,4]
[345975145,1734579038697,-500.0,0.00022709,4]
[345975146,1734579038707,-492.35665484,0.00022709,4]
[345975147,1734579038716,-500.0,0.00022709,4]
[345975148,1734579038728,-500.0,0.00022709,4]
[345975149,1734579038738,-500.0,0.00022709,4]
[345975150,1734579038749,-507.01544707,0.00022709,4]
[345975151,1734579038759,-500.0,0.00022709,2]
[345975152,1734579038768,-500.0,0.00022709,4]
[345975153,1734579038778,-500.0,0.00022709,4]
[345975154,1734579038787,-283.64852395,0.00022709,4]
[345975155,1734579038797,-500.0,0.00022709,4]
[345975156,1734579038806,-500.0,0.00022709,4]
[345975157,1734579038815,-500.0,0.00022709,4]
[345975158,1734579038825,-500.0,0.00022709,4]
[345975159,1734579038834,-500.0,0.00022709,4]
[345975160,1734579038844,-500.0,0.00022709,4]
[345975161,1734579038853,-500.0,0.00022709,4]
[345975162,1734579038862,-500.0,0.00022709,4]
[345975163,1734579038871,-500.0,0.00022709,4]
[345975164,1734579038880,-500.0,0.00022709,4]
[345975165,1734579038890,-564.49935671,0.00022709,4]
[345975166,1734579038900,-501.90447454,0.00022709,4]
[345975167,1734579038909,-500.0,0.00022709,4]
[345975168,1734579038918,-500.0,0.00022709,4]
[345975169,1734579038927,-500.0,0.00022709,4]
[345975170,1734579038937,-500.0,0.00022709,4]
[345975171,1734579038946,-473.4,0.00022709,2]
[345975172,1734579038956,-500.0,0.00022709,4]
[345975173,1734579038965,-500.0,0.00022709,4]
[345975174,1734579038975,-500.0,0.00022709,4]
[345975175,1734579038984,-500.0,0.00022709,4]
[345975176,1734579038994,-500.0,0.00022709,4]
[345975177,1734579039003,-500.0,0.00022709,4]
[345975178,1734579039013,-500.0,0.00022709,4]
[345975179,1734579039023,-500.0,0.00022709,4]
[345975180,1734579039032,-500.0,0.00022709,4]
[345975181,1734579039042,-584.35202629,0.00022709,2]
[345975182,1734579039052,-500.0,0.00022709,4]
[345975183,1734579039061,-500.0,0.00022709,4]
[345975184,1734579039071,-500.0,0.00022709,4]
[345975185,1734579039080,-500.0,0.00022709,4]
[345975186,1734579039090,-500.0,0.00022709,4]
[345975187,1734579039099,-500.0,0.00022709,4]
[345975188,1734579039109,-500.0,0.00022709,4]
[345975189,1734579039118,-500.0,0.00022709,4]
[345975190,1734579039128,-512.30999514,0.00022709,4]
[345975191,1734579039137,-500.0,0.00022709,4]
[345975192,1734579039146,-500.0,0.00022709,4]
[345975193,1734579039155,-500.0,0.00022709,4]
[345975194,1734579039165,-523.065332,0.00022709,4]
[345975195,1734579039174,-3693.7561,0.00022709,2]
[345975196,1734579039183,-5635.6763,0.00022709,2]
[345975197,1734579039193,-1000.0,0.00022782,2]
[345975198,1734579039202,-2500.0,0.00022782,2]
[345975199,1734579039212,-211.63,0.00022801,2]
[345975200,1734579039221,-500.0,0.00022809,4]
[345975201,1734579039232,-504.62741582,0.00022809,4]
[345975202,1734579039242,-500.0,0.00022809,4]
[345975203,1734579039251,-504.14760968,0.00022809,4]
[345975204,1734579039261,-501.4425418,0.00022809,4]
[345975205,1734579039271,-524.06360205,0.00022809,4]
[345975206,1734579039281,-314.39922435,0.00022809,4]
[345975207,1734579039290,-502.82472722,0.00022809,4]
[345975208,1734579039300,-565.18180767,0.00022809,4]
[345975209,1734579039309,-504.45471292,0.00022809,4]
[345975210,1734579039319,-500.0,0.00022809,4]
[345975211,1734579039328,-513.99480278,0.00022809,4]
[345975212,1734579039338,-501.25030929,0.00022809,4]
[345975213,1734579039347,-500.77934677,0.00022809,4]
[345975214,1734579039357,-502.4199529,0.00022809,4]
[345975215,1734579039366,-500.0,0.00022809,4]
[345975216,1734579039376,-503.74502799,0.00022809,4]
[345975217,1734579039386,-500.0,0.00022809,4]
[345975218,1734579039400,-500.0,0.00022809,4]
[345975219,1734579039410,-500.0,0.00022809,4]
[345975220,1734579039420,-507.90457725,0.00022809,4]
[345975221,1734579039429,-500.0,0.00022809,4]
[345975222,1734579039439,-501.66880881,0.00022809,2]
[345975223,1734579039449,-611.68455386,0.00022809,4]
[345975224,1734579039458,-500.0,0.00022809,4]
[345975225,1734579039469,-500.0,0.00022809,4]
[345975226,1734579039482,-501.50529978,0.00022809,4]
[345975227,1734579039491,-500.0,0.00022809,4]
[345975228,1734579039501,-510.97618111,0.00022809,4]
[345975229,1734579039511,-300.0,0.00022809,4]
[345975230,1734579039521,-500.0,0.00022809,4]
[345975231,1734579039530,-500.0,0.00022809,4]
[345975232,1734579039539,-500.0,0.00022809,4]
[345975233,1734579039549,-503.83862218,0.00022809,4]
[345975234,1734579039558,-323.80932083,0.00022809,4]
[345975235,1734579039568,-500.67462845,0.00022809,4]
[345975236,1734579039577,-500.0,0.00022809,4]
[345975237,1734579039587,-500.0,0.00022809,4]
[345975238,1734579039597,-500.0,0.00022809,4]
[345975239,1734579039607,-500.0,0.00022809,4]
[345975240,1734579039616,-500.0,0.00022809,4]
[345975241,1734579039626,-500.0,0.00022809,4]
[345975242,1734579039636,-500.0,0.00022809,4]
[345975243,1734579039645,-500.0,0.00022809,4]
[345975244,1734579039654,-500.0,0.00022809,4]
[345975245,1734579039664,-500.0,0.00022809,4]
[345975246,1734579039674,-159.31,0.00022822,2]
[345975247,1734579039683,-269.0,0.00022822,2]
[345975248,1734579039693,-1111.326,0.0002284,2]
[345975249,1734579039702,-161.76877894,0.00022873,2]
[345975250,1734579039712,-501.00821156,0.00022873,2]
[345975251,1734579039722,-501.00939743,0.00022873,2]
[345975252,1734579039732,-500.0,0.00022873,2]
[345975253,1734579039741,-500.0,0.00022881,4]
[345975254,1734579039751,-538.96,0.00022881,4]
[345975256,1734579039761,-500.0,0.00022881,4]
[345975257,1734579039771,-500.0,0.00022881,4]
[345975258,1734579039780,-761.98,0.00022881,4]
[345975259,1734579039789,-500.0,0.00022881,4]
[345975260,1734579039798,-500.0,0.00022881,4]
[345975261,1734579039808,-184.809569,0.00022881,4]
[345975262,1734579039817,-500.0,0.00022881,4]
[345975263,1734579039827,-533.840132,0.00022881,4]
[345975264,1734579039837,-500.0,0.00022881,4]
[345975265,1734579039846,-500.0,0.00022881,4]
[345975266,1734579039855,-285.2,0.00022881,4]
[345975267,1734579039865,-500.0,0.00022881,4]
[345975268,1734579039875,-500.0,0.00022881,4]
[345975269,1734579039885,-500.0,0.00022881,4]
[345975270,1734579039895,-500.0,0.00022881,4]
[345975271,1734579039904,-500.0,0.00022881,4]
[345975272,1734579039914,-500.0,0.00022881,4]
[345975273,1734579039923,-500.0,0.00022881,4]
[345975274,1734579039933,-519.53,0.00022881,4]
[345975275,1734579039944,-500.0,0.00022881,4]
[345975276,1734579039954,-703.46,0.00022881,4]
[345975277,1734579039964,-500.0,0.00022881,4]
[345975278,1734579039974,-500.0,0.00022881,4]
[345975279,1734579039984,-500.0,0.00022881,4]
[345975280,1734579039993,-500.0,0.00022881,4]
[345975281,1734579040002,-638.99,0.00022881,4]
[345975282,1734579040012,-1578.81,0.00022881,4]
[345975283,1734579040021,-1837.72,0.00022881,4]
[345975284,1734579040031,-500.0,0.00022881,4]
[345975285,1734579040040,-500.0,0.00022881,4]
[345975286,1734579040050,-500.0,0.00022881,4]
[345975287,1734579040059,-1125.22,0.00022881,4]
[345975288,1734579040069,-720.95,0.00022881,4]
[345975289,1734579040078,-500.0,0.00022881,4]
[345975290,1734579040088,-500.0,0.00022881,4]
[345975291,1734579040097,-527.63,0.00022881,4]
[345975292,1734579040107,-500.0,0.00022881,4]
[345975293,1734579040117,-500.0,0.00022881,4]
[345975294,1734579040126,-500.0,0.00022881,4]
[345975295,1734579040137,-500.0,0.00022881,4]
[345975296,1734579040147,-944.87,0.00022881,4]
[345975297,1734579040157,-500.0,0.00022881,4]
[345975298,1734579040166,-500.0,0.00022881,4]
[345975299,1734579040175,-500.0,0.00022881,4]
[345975300,1734579040185,-500.0,0.00022881,4]
[345975301,1734579040194,-500.0,0.00022881,4]
[345975302,1734579040203,-500.0,0.00022881,4]
[345975303,1734579040212,-500.0,0.00022881,4]
[345975304,1734579040222,-500.0,0.00022881,4]
[345975305,1734579040234,-500.0,0.00022881,4]
[345975306,1734579040244,-518.64638726,0.00022881,4]
[345975307,1734579040255,-500.0,0.00022881,4]
[345975308,1734579040266,-500.0,0.00022881,4]
[345975309,1734579040275,-500.0,0.00022881,4]
[345975310,1734579040284,-500.0,0.00022881,4]
[345975311,1734579040294,-500.0,0.00022881,4]
[345975312,1734579040303,-28.60690357,0.00022881,4]
[345975313,1734579040416,-366.025,0.00022881,4]
[345975314,1734579040441,-105.36809643,0.00022881,4]
[345975315,1734579040451,-500.0,0.00022881,4]
[345975316,1734579040461,-500.0,0.00022881,4]
[345975317,1734579040471,-140.85492467,0.00022881,4]
[345975320,1734579043123,-300.0,0.00022881,4]
[345975321,1734579043136,-59.14507533,0.00022881,4]
[345975322,1734579043148,-500.0,0.00022881,4]
[345975323,1734579043159,-500.0,0.00022881,4]
[345975324,1734579043171,-500.0,0.00022881,4]
[345975325,1734579043182,-500.0,0.00022881,4]
[345975326,1734579043193,-500.0,0.00022881,4]
[345975327,1734579043205,-510.02478519,0.00022881,4]
[345975328,1734579043216,-504.85770965,0.00022881,4]
[345975329,1734579043229,-500.0,0.00022881,4]
[345975330,1734579043240,-502.81512846,0.00022881,4]
[345975331,1734579043251,-500.0,0.00022881,4]
[345975332,1734579043261,-7202.703041,0.00022882,2]
[345975333,1734579043271,-459.02747623,0.00022882,4]
[345975335,1734579043282,-522.44,0.00022882,4]
[345975336,1734579043293,-534.66216679,0.00022882,4]
[345975337,1734579043305,-500.0,0.00022882,4]
[345975339,1734579043315,-502.52189989,0.00022882,4]
[345975341,1734579043327,-320.22533307,0.00022882,4]
[345975344,1734579043339,-500.0,0.00022882,4]
[345975345,1734579043350,-532.34000232,0.00022882,4]
[345975346,1734579043361,-400.0,0.00022882,4]
[345975347,1734579043372,-500.0,0.00022882,4]
[345975348,1734579043383,-435.73935858,0.00022882,4]
[345975349,1734579043399,-64.26064142,0.00022882,4]
[345975350,1734579043411,-297.29017358,0.00022882,4]
[345975361,1734579045882,-202.70982642,0.00022882,4]
[345975362,1734579045892,-500.0,0.00022882,4]
[345975363,1734579045904,-500.0,0.00022882,4]
[345975364,1734579045916,-500.0,0.00022882,4]
[345975365,1734579045928,-500.0,0.00022882,4]
[345975366,1734579045939,-500.0,0.00022882,4]
[345975367,1734579045949,-500.0,0.00022882,4]
[345975368,1734579045959,-485.90479618,0.00022882,4]
[345975369,1734579045968,-500.0,0.00022882,4]
[345975370,1734579045980,-516.69047068,0.00022882,4]
[345975371,1734579045990,-500.0,0.00022882,4]
[345975372,1734579046001,-500.0,0.00022882,4]
[345975373,1734579046012,-521.32796217,0.00022882,4]
[345975374,1734579046024,-500.0,0.00022882,4]
[345975375,1734579046035,-500.0,0.00022882,4]
[345975376,1734579046046,-500.0,0.00022882,4]
[345975377,1734579046056,-500.0,0.00022882,4]
[345975378,1734579046067,-500.0,0.00022882,4]
[345975379,1734579046078,-500.0,0.00022882,4]
[345975380,1734579046088,-500.0,0.00022882,4]
[345975381,1734579046099,-500.0,0.00022882,4]
[345975382,1734579046111,-500.0,0.00022882,4]
[345975383,1734579046125,-500.0,0.00022882,4]
[345975384,1734579046135,-500.0,0.00022882,4]
[345975385,1734579046146,-500.0,0.00022882,4]
[345975386,1734579046156,-358.18429424,0.00022882,4]
[345975389,1734579046404,-141.81570576,0.00022882,4]
[345975390,1734579046415,-358.18429424,0.00022882,4]
[345975391,1734579046438,-154.00434102,0.00022882,4]
[345975392,1734579046448,-500.0,0.00022882,4]
[345975393,1734579046459,-500.0,0.00022882,4]
[345975394,1734579046470,-516.73530096,0.00022882,4]
[345975395,1734579046482,-504.88492834,0.00022882,4]
[345975396,1734579046493,-500.0,0.00022882,4]
[345975397,1734579046503,-500.0,0.00022882,4]
[345975398,1734579046514,-500.0,0.00022882,4]
[345975399,1734579046525,-500.0,0.00022882,4]
[345975400,1734579046535,-500.0,0.00022882,4]
[345975401,1734579046546,-324.37542968,0.00022882,4]
[345975402,1734579405524,30.64,0.00013,2]
[345975403,1734579405549,419.36,0.00013,2]
[345975404,1734579406575,380.64,0.00015,2]
[345975405,1734579406597,119.36,0.00015,2]
[345975406,1734579407683,550.0,0.00017,2]
[345975407,1734579435628,130.64,0.00010137,2]
[345975408,1734579435650,26.34,0.00010137,2]
[345975410,1734579615242,202.06,0.00024,120]
[345975431,1734580232330,-600.0,0.00019,2]
[345975432,1734580232340,-287.91782441,0.00019643,2]
[345975433,1734580232350,-398.49715518,0.00019743,2]
[345975434,1734580232361,-211.51284482,0.00019743,2]
[345975435,1734580232372,-156.98,0.00019895,2]
[345975436,1734580232382,-400.63701798,0.00021142,2]
[345975437,1734580232392,-500.0,0.00021164,2]
[345975438,1734580232402,-250.0,0.00021245,2]
[345975439,1734580232412,-250.0,0.00021302,2]
[345975440,1734580232422,-250.0,0.00021323,2]
[345975441,1734580232431,-708.64,0.00021347,2]
[345975442,1734580232441,-400.63701798,0.00021403,2]
[345975443,1734580232451,-152.24,0.00021474,30]
[345975444,1734580232461,-150.0,0.00021479,2]
[345975445,1734580232471,-3631.70743272,0.00021503,2]
[345975446,1734580232483,-7862.71795814,0.00021503,2]
[345975447,1734580232495,-7560.00000004,0.00021503,2]
[345975448,1734580232509,-1663.28286315,0.00021503,2]
[345975449,1734580232520,-1535.79576675,0.00021503,2]
[345975450,1734580232666,-1646.4959792,0.00021503,2]
[345975452,1734580232676,-340.27,0.00021573,2]
[345975454,1734580232686,-1044.1604102,0.00021579,2]
[345975500,1734580238143,-544.38170658,0.00021579,2]
[345975502,1734580238818,-156.25788322,0.00021579,2]
[345975503,1734580238830,-696.73347822,0.00021693,2]
[345975504,1734580238842,-303.26652178,0.00021693,2]
[345975505,1734580238852,-270.34,0.00021738,2]
[345975506,1734580238862,-1092.09,0.00021757,2]
[345975507,1734580238872,-999.99,0.00021757,2]
[345975508,1734580238882,-9999.99,0.00021757,2]
[345975509,1734580238892,-1507.56,0.00021757,2]
[345975510,1734580238901,-9999.99,0.00021757,2]
[345975511,1734580238913,-150.99,0.00021757,2]
[345975512,1734580238923,-150.99,0.00021757,2]
[345975513,1734580238932,-200.0,0.00021815,2]
[345975514,1734580238942,-400.63701798,0.00021847,2]
[345975515,1734580238952,-400.63701798,0.00021955,2]
[345975516,1734580238962,-1000.0,0.00022004,2]
[345975517,1734580238972,-610.01,0.00022007,2]
[345975518,1734580238982,-454.5,0.00022076,2]
[345975519,1734580238991,-162.33,0.00022127,2]
[345975520,1734580239001,-250.0,0.00022186,2]
[345975521,1734580239011,-583.73,0.00022186,2]
[345975522,1734580239021,-1000.0,0.00022223,2]
[345975523,1734580239031,-162.31,0.00022272,2]
[345975524,1734580239041,-170.4,0.00022321,2]
[345975525,1734580239051,-400.63701798,0.00022378,2]
[345975526,1734580239060,-150.0,0.00022488,4]
[345975527,1734580239070,-150.0,0.00022488,4]
[345975528,1734580239080,-150.0,0.00022488,4]
[345975529,1734580239090,-150.0,0.00022488,4]
[345975530,1734580239099,-150.0,0.00022488,4]
[345975531,1734580239109,-400.63701801,0.0002254,2]
[345975532,1734580239118,-525.91682367,0.00022781,2]
[345975533,1734580239128,-310.7621,0.00022781,2]
[345975534,1734580239138,-1000.0,0.00022781,2]
[345975535,1734580239148,-270.34,0.00022825,2]
[345975536,1734580239160,-1279.452,0.00022839,2]
[345975537,1734580239169,-158.672,0.00022839,2]
[345975538,1734580239179,-500.0,0.00022849,2]
[345975540,1734580239190,-150.01,0.00022871,2]
[345975542,1734580239199,-150.01,0.00022871,2]
[345975544,1734580239209,-150.01,0.00022871,2]
[345975546,1734580239218,-213.76156377,0.00022871,2]
[345975547,1734580239228,-150.01,0.00022871,2]
[345975548,1734580239237,-150.01,0.00022871,2]
[345975549,1734580239247,-150.01,0.00022872,2]
[345975550,1734580239256,-500.0,0.00022873,2]
[345975551,1734580239265,-500.0,0.0002288,4]
[345975552,1734580239276,-500.0,0.0002288,4]
[345975553,1734580239285,-500.0,0.0002288,4]
[345975554,1734580239295,-500.0,0.0002288,4]
[345975555,1734580239304,-500.0,0.0002288,4]
[345975556,1734580239315,-1513.03,0.0002288,4]
[345975557,1734580239324,-595.76,0.0002288,4]
[345975558,1734580239334,-667.65,0.0002288,4]
[345975559,1734580239344,-500.0,0.0002288,4]
[345975560,1734580239353,-690.91,0.0002288,4]
[345975561,1734580239362,-1078.34,0.0002288,4]
[345975562,1734580239371,-591.77,0.0002288,4]
[345975563,1734580239381,-500.0,0.0002288,4]
[345975564,1734580239390,-500.0,0.0002288,4]
[345975565,1734580239400,-505.65,0.0002288,4]
[345975566,1734580239414,-905.5,0.0002288,4]
[345975567,1734580239424,-500.0,0.0002288,4]
[345975568,1734580239434,-348.92475242,0.0002288,4]
[345975569,1734580239443,-500.0,0.0002288,4]
[345975570,1734580239452,-500.0,0.0002288,4]
[345975571,1734580239461,-500.0,0.0002288,4]
[345975572,1734580239471,-500.0,0.0002288,4]
[345975573,1734580239480,-500.0,0.0002288,4]
[345975574,1734580239490,-500.0,0.0002288,4]
[345975575,1734580239499,-500.0,0.0002288,4]
[345975576,1734580239509,-516.5,0.0002288,4]
[345975577,1734580239519,-500.0,0.0002288,4]
[345975578,1734580239528,-17031.75649787,0.00022881,2]
[345975579,1734580239541,-6600.30721997,0.00022881,2]
[345975582,1734580240349,-2925.90586369,0.00022881,2]
[345975583,1734580240363,-2138.3000015,0.00022881,2]
[345975595,1734580243330,-500.0,0.0002288,4]
[345975596,1734580243341,-99.99999997,0.00022881,2]
[345975600,1734580246567,-500.67,0.0002288,4]
[345975601,1734580246577,-6969.90219,0.00022881,2]
[345975604,1734580247026,-6846.57614636,0.00022881,2]
[345975605,1734580247038,-4867.13902654,0.00022881,2]
[345975606,1734580247050,-445.544,0.00022881,2]
[345975607,1734580247212,-710.34544611,0.00022881,2]
[345975609,1734580247224,-330.49842,0.00022881,2]
[345975614,1734580383293,2553.02488591,0.00022881,120]
[345975616,1734580417834,159.23,0.00010137,2]
[345975618,1734580894784,10000.0,0.00024,120]
[345975619,1734580913749,10000.0,0.00024,120]
[345975620,1734581220807,551.60776482,0.00024,120]
[345975621,1734581330224,158.59,0.00010137,2]
[345975646,1734581432031,-341.90832941,0.00020028,2]
[345975647,1734581432089,-6213.09167059,0.00020028,2]
[345975648,1734581432099,-612.03,0.00020028,2]
[345975649,1734581432108,-500.0,0.00021164,2]
[345975650,1734581432119,-250.0,0.00021608,2]
[345975651,1734581432128,-162.33,0.00021608,2]
[345975652,1734581432138,-250.0,0.00021755,2]
[345975653,1734581432148,-167.98,0.00021787,2]
[345975654,1734581432161,-633.08,0.00021817,2]
[345975655,1734581432170,-18122.15637249,0.0002184,2]
[345975656,1734581432187,-1001.3784,0.0002184,2]
[345975657,1734581432214,-339.58522751,0.0002184,2]
[345975658,1734581432223,-152.24,0.00021885,30]
[345975659,1734581432234,-170.13,0.00021909,2]
[345975660,1734581432243,-162.2,0.00021921,2]
[345975661,1734581432252,-6135.84477259,0.00021921,2]
[345975662,1734581432456,-616.07178949,0.00021921,2]
[345975663,1734581432468,-549.76343792,0.00021921,2]
[345975664,1734581432480,-98.86156458,0.00021921,2]
[345975665,1734581432491,-52.12843542,0.00021921,2]
[345975666,1734581432500,-250.0,0.00021962,2]
[345975667,1734581432510,-704.23156458,0.00021974,2]
[345975668,1734581432521,-295.76843542,0.00021974,2]
[345975669,1734581432530,-155.95157458,0.0002203,2]
[345975670,1734581432566,-207.64842542,0.0002203,2]
[345975671,1734581432575,-612.03,0.00022292,2]
[345975672,1734581432585,-150.0,0.00022488,4]
[345975673,1734581432594,-150.0,0.00022488,4]
[345975674,1734581432604,-150.0,0.00022488,4]
[345975675,1734581432613,-469.32157458,0.000225,2]
[345975688,1734581437979,-1092.1261414,0.000225,2]
[345975689,1734581438034,-252.65596377,0.000225,2]
[345975690,1734581438045,-27.89632025,0.000225,2]
[345975691,1734581438054,-544.54153485,0.00022585,2]
[345975692,1734581438296,-455.45846515,0.00022585,2]
[345975693,1734581438306,-167.19,0.00022709,2]
[345975694,1734581438315,-355.30132686,0.00022779,2]
[345975695,1734581438324,-718.0380622,0.00022779,2]
[345975696,1734581438333,-5000.0,0.0002278,2]
[345975697,1734581438342,-193.9280428,0.0002278,2]
[345975698,1734581438351,-1468.2746141,0.00022781,2]
[345975712,1734581440249,-637.8459,0.0002278,2]
[345975713,1734581440259,-168.49410009,0.00022781,2]
[345975714,1734581440459,-4713.10210847,0.00022781,2]
[345975744,1734581443192,-15142.50357734,0.00022781,2]
[345975745,1734581443203,-4645.2475,0.00022781,2]
[345975746,1734581443212,-243.33534439,0.00022781,2]
[345975747,1734581443221,-11.63857827,0.00022841,2]
[345975748,1734581443233,-988.36142173,0.00022841,2]
[345975749,1734581443243,-47.45471047,0.00022845,2]
[345975750,1734581443352,-316.14528953,0.00022845,2]
[345975751,1734581443362,-201.56,0.00022869,2]
[345975752,1734581443372,-201.56,0.00022869,2]
[345975753,1734581443381,-201.56,0.00022869,2]
[345975754,1734581443392,-201.56,0.00022869,2]
[345975755,1734581443404,-201.56,0.00022869,2]
[345975756,1734581443413,-213.76156378,0.00022869,2]
[345975757,1734581443422,-183.47,0.00022869,2]
[345975758,1734581443432,-183.47,0.00022869,2]
[345975759,1734581443441,-183.47,0.00022869,2]
[345975760,1734581443450,-183.47,0.00022869,2]
[345975761,1734581443461,-183.47,0.00022869,2]
[345975762,1734581443471,-183.47,0.0002287,2]
[345975763,1734581443480,-183.47,0.0002287,2]
[345975764,1734581443490,-183.47,0.0002287,2]
[345975765,1734581443499,-183.47,0.0002287,2]
[345975766,1734581443508,-500.0,0.00022873,2]
[345975767,1734581443517,-1023.562,0.00022873,2]
[345975768,1734581443527,-500.0,0.00022879,4]
[345975769,1734581443536,-500.0,0.00022879,4]
[345975770,1734581443545,-500.0,0.00022879,4]
[345975771,1734581443555,-500.0,0.00022879,4]
[345975772,1734581443564,-639.83,0.00022879,4]
[345975773,1734581443573,-1460.56,0.00022879,4]
[345975774,1734581443583,-1033.41,0.00022879,4]
[345975775,1734581443592,-376.37,0.00022879,4]
[345975776,1734581443601,-662.12,0.00022879,4]
[345975777,1734581443611,-500.0,0.00022879,4]
[345975778,1734581443620,-500.0,0.00022879,4]
[345975779,1734581443629,-500.0,0.00022879,4]
[345975780,1734581443638,-500.0,0.00022879,4]
[345975781,1734581443650,-867.77,0.00022879,4]
[345975782,1734581443659,-500.0,0.00022879,4]
[345975783,1734581443669,-299.03,0.00022879,4]
[345975784,1734581443678,-500.0,0.00022879,4]
[345975785,1734581443687,-167.89,0.00022879,4]
[345975786,1734581443696,-500.0,0.00022879,4]
[345975787,1734581443705,-500.0,0.00022879,4]
[345975788,1734581443715,-500.0,0.00022879,4]
[345975789,1734581443725,-500.0,0.00022879,4]
[345975790,1734581443734,-500.0,0.00022879,4]
[345975791,1734581443744,-3139.11074669,0.0002288,2]
[345975792,1734581443755,-3321.77441633,0.0002288,2]
[345975803,1734581446078,-1213.22025432,0.0002288,2]
[345975804,1734581446185,-2101.42539426,0.0002288,2]
[345975805,1734581446242,-743.3523116,0.0002288,2]
[345975806,1734581446255,-1539.98964512,0.0002288,2]
[345975807,1734581446348,-500.0,0.00022879,4]
[345975808,1734581446358,-4657.8190213,0.0002288,2]
[345975810,1734582192758,455.84,0.00018,2]
[345975811,1734582192780,44.16,0.00018,2]
[345975812,1734582193090,500.0,0.00018,2]
[345975813,1734582193474,255.84,0.00018,2]
[345975814,1734582193499,244.16,0.00018,2]
[345975815,1734582193795,500.0,0.00018,2]
[345975816,1734582221191,55.84,0.00018,2]
[345975817,1734582221212,800.0,0.00018,2]
[345975818,1734582221231,800.0,0.00018,2]
[345975819,1734582221252,344.16,0.00018,2]
[345975820,1734582221650,455.84,0.00018,2]
[345975821,1734582241414,188.0,0.00017999,2]
[345975822,1734582340464,156.49,0.00010137,2]
[345975824,1734582426487,9764.28547297,0.000157,2]
[345975826,1734582431004,-1544.16,0.00018,2]